bitfinex/quotes_BTCUSD_20250303
["timestamp","ask_amount","ask_price","bid_price","bid_amount"]
[1740994470251,0.00190118,92059.0,92037.0,0.162977]
[1740994470453,0.00835202,92062.0,92037.0,0.56406558]
[1740994470659,0.217237,92066.0,92037.0,0.56406558]
[1740994470858,0.162929,92065.0,92037.0,0.56406558]
[1740994471069,0.162932,92063.0,92037.0,0.56406558]
[1740994471234,0.0003406,92072.0,92037.0,0.56406558]
[1740994471473,0.217254,92058.0,92037.0,0.26306558]
[1740994471637,0.217273,92051.0,92037.0,0.10108858]
[1740994471843,0.00190107,92060.0,92037.0,0.26406558]
[1740994472088,0.217268,92053.0,92037.0,0.26446577]
[1740994472501,0.0013406,92038.0,92037.0,0.26546577]
[1740994472674,0.0013406,92038.0,92037.0,0.28761596]
[1740994473744,0.0003406,92038.0,92037.0,0.12363896]
[1740994473900,0.0013406,92038.0,92037.0,0.12563896]
[1740994474311,0.0003406,92038.0,92037.0,0.12363896]
[1740994474564,0.0003406,92038.0,92037.0,0.12563896]
[1740994474565,0.1643166,92038.0,92037.0,0.12563896]
[1740994474757,0.1643166,92038.0,92037.0,0.02455038]
[1740994475046,0.1633166,92038.0,92037.0,0.00040019]
[1740994475398,0.4643166,92038.0,92037.0,0.00340019]
[1740994475609,0.4633166,92038.0,92037.0,0.00040019]
[1740994475806,0.1633166,92038.0,92037.0,0.00040019]
[1740994477058,0.16621838,92038.0,92037.0,0.00240019]
[1740994477259,0.00201,92117.0,92092.0,0.1277]
[1740994477490,0.0003408,92136.0,92130.0,0.162813]
[1740994477690,0.0003408,92136.0,92130.0,0.21433176]
[1740994477841,0.0003408,92133.0,92132.0,0.04999983]
[1740994478045,0.0012692,92148.0,92137.0,0.04999983]
[1740994478248,0.0012692,92148.0,92147.0,0.462783]
[1740994478451,0.0138336,92170.0,92163.0,0.162755]
[1740994478657,0.0138336,92170.0,92163.0,0.161755]
[1740994478835,0.0138336,92170.0,92163.0,0.18076369]
[1740994479254,0.00241068,92164.0,92163.0,0.01900869]
[1740994479653,0.00241068,92164.0,92162.0,0.162755]
[1740994479858,0.00241068,92164.0,92163.0,0.0189773]
[1740994480255,0.00241068,92164.0,92163.0,0.0194962]
[1740994480492,0.00241068,92164.0,92163.0,0.0179773]
[1740994480853,0.00341068,92164.0,92163.0,0.0179773]
[1740994481061,0.00341068,92164.0,92163.0,0.3179773]
[1740994481285,0.00341068,92164.0,92163.0,0.32258658]
[1740994481446,0.00441068,92164.0,92163.0,0.32958658]
[1740994482414,0.00441068,92164.0,92163.0,0.65668658]
[1740994482633,0.00441068,92164.0,92163.0,0.35668658]
[1740994482996,0.00241068,92164.0,92163.0,0.34968658]
[1740994483193,0.00241068,92164.0,92163.0,0.35668658]
[1740994483599,0.00241068,92164.0,92163.0,0.34968658]
[1740994483762,0.00241068,92164.0,92163.0,0.35368658]
[1740994484211,0.00241068,92164.0,92163.0,0.34968658]
[1740994484626,0.00241068,92164.0,92163.0,0.35468658]
[1740994486374,0.00241068,92164.0,92163.0,0.34968658]
[1740994486820,0.00241068,92164.0,92163.0,0.35468658]
[1740994486993,0.00241068,92164.0,92163.0,0.02258658]
[1740994487193,0.01695153,92164.0,92163.0,0.02258658]
[1740994487407,0.01695153,92164.0,92163.0,0.19134158]
[1740994487556,0.01695153,92164.0,92163.0,0.168755]
[1740994487759,0.01695153,92164.0,92163.0,0.02482215]
[1740994488165,0.01695153,92164.0,92163.0,0.01882215]
[1740994488365,0.01695153,92164.0,92163.0,0.01982215]
[1740994488566,0.01695153,92164.0,92163.0,0.001]
[1740994488782,0.00241068,92164.0,92163.0,0.02134112]
[1740994489105,0.00241068,92164.0,92163.0,0.3213409]
[1740994489437,0.00241068,92164.0,92163.0,0.31982215]
[1740994489751,0.00241068,92164.0,92163.0,0.31882215]
[1740994490489,0.00241068,92164.0,92163.0,0.32082215]
[1740994490904,0.00241068,92164.0,92163.0,0.32116215]
[1740994491100,0.00258068,92164.0,92163.0,0.31916215]
[1740994491307,0.00258068,92164.0,92163.0,0.32616215]
[1740994491713,0.00258068,92164.0,92163.0,0.31916215]
[1740994492157,0.00258068,92164.0,92163.0,0.01916215]
[1740994492562,0.00258068,92164.0,92163.0,0.02068109]
[1740994492767,0.00258068,92164.0,92163.0,0.02068091]
[1740994493066,0.00258068,92164.0,92163.0,0.32768095]
[1740994493265,0.00258068,92164.0,92163.0,0.31916215]
[1740994494211,0.00258068,92164.0,92163.0,0.32616215]
[1740994494416,0.00258068,92164.0,92163.0,0.31916215]
[1740994494792,0.00258068,92164.0,92163.0,0.32616215]
[1740994496435,0.00258068,92164.0,92163.0,1.03271715]
[1740994496651,0.00258068,92164.0,92163.0,1.35981715]
[1740994499640,0.00258068,92164.0,92163.0,1.35281715]
[1740994500047,0.00258068,92164.0,92163.0,1.35981715]
[1740994500247,0.00258068,92164.0,92163.0,1.35281715]
[1740994500652,0.00258068,92164.0,92163.0,1.35981715]
[1740994501323,6.8e-07,92164.0,92163.0,1.35981715]
[1740994501526,6.8e-07,92164.0,92163.0,1.40981698]
[1740994502215,2.8e-07,92175.0,92174.0,0.462735]
[1740994502584,4.032e-05,92175.0,92174.0,1.3562016]
[1740994502774,4.032e-05,92175.0,92174.0,1.40620143]
[1740994503761,4.032e-05,92175.0,92174.0,1.41320143]
[1740994504181,4.032e-05,92175.0,92174.0,1.50456143]
[1740994504377,3.2e-07,92179.0,92178.0,0.51272783]
[1740994504615,3.2e-07,92179.0,92178.0,1.40242405]
[1740994504856,3.2e-07,92179.0,92178.0,1.49041169]
[1740994505055,3.2e-07,92179.0,92178.0,1.53861169]
[1740994505823,0.00201,92226.0,92202.0,0.00236268]
[1740994506024,0.00212998,92210.0,92209.0,0.462673]
[1740994506225,0.00212998,92210.0,92209.0,0.82776064]
[1740994506571,9.8e-07,92210.0,92209.0,1.35608873]
[1740994507023,9.8e-07,92210.0,92209.0,1.41434798]
[1740994507230,9.8e-07,92210.0,92209.0,1.47815247]
[1740994507360,9.8e-07,92210.0,92209.0,1.51614011]
[1740994507563,9.8e-07,92210.0,92209.0,1.57678096]
[1740994507774,9.8e-07,92210.0,92209.0,1.53879332]
[1740994508379,9.8e-07,92210.0,92209.0,1.583489]
[1740994508595,9.8e-07,92210.0,92209.0,1.47425264]
[1740994508916,9.8e-07,92210.0,92209.0,1.37815264]
[1740994509113,9.8e-07,92210.0,92209.0,1.36989322]
[1740994509315,9.8e-07,92210.0,92209.0,1.46121322]
[1740994509521,9.8e-07,92210.0,92209.0,1.36989322]
[1740994510423,9.8e-07,92210.0,92209.0,1.37689322]
[1740994510646,9.8e-07,92210.0,92209.0,1.36989322]
[1740994511085,9.8e-07,92210.0,92209.0,1.37689322]
[1740994511268,9.8e-07,92210.0,92209.0,0.52609322]
[1740994511502,9.8e-07,92210.0,92209.0,0.34961573]
[1740994511775,9.8e-07,92210.0,92209.0,0.35661573]
[1740994512056,9.8e-07,92210.0,92209.0,0.34961573]
[1740994513419,9.8e-07,92210.0,92209.0,0.02251573]
[1740994513667,9.8e-07,92210.0,92209.0,0.007]
[1740994513800,0.01454183,92210.0,92209.0,0.007]
[1740994514006,0.01454183,92210.0,92115.0,0.05431345]
[1740994514007,0.22252485,92203.0,92172.0,0.3271]
[1740994514366,0.22356998,92203.0,92173.0,0.21850154]
[1740994514496,0.22356998,92203.0,92181.0,0.216964]
[1740994514690,0.22356998,92203.0,92179.0,0.01090211]
[1740994514890,0.22356998,92203.0,92182.0,0.00151865]
[1740994515099,0.22356998,92203.0,92173.0,0.216983]
[1740994515100,0.22356998,92203.0,92177.0,0.216973]
[1740994515459,0.01454085,92195.0,92173.0,0.3]
[1740994515676,0.04634513,92203.0,92173.0,0.3]
[1740994515677,0.162714,92186.0,92174.0,0.02028296]
[1740994515880,0.0453,92203.0,92190.0,0.162707]
[1740994516075,0.162693,92198.0,92190.0,0.162707]
[1740994516275,0.162693,92198.0,92187.0,0.216949]
[1740994516276,0.01454085,92197.0,92191.0,0.02026547]
[1740994516519,0.01454085,92199.0,92191.0,0.02026547]
[1740994516706,0.01454085,92199.0,92174.0,0.3]
[1740994516707,0.01454085,92199.0,92160.0,0.27197878]
[1740994516916,0.01454085,92201.0,92194.0,0.1627]
[1740994517252,0.17722685,92202.0,92195.0,0.162697]
[1740994517426,0.01454085,92202.0,92201.0,0.162688]
[1740994517772,0.0453,92203.0,92202.0,0.162686]
[1740994517978,0.00017098,92210.0,92208.0,0.162675]
[1740994518241,0.00017098,92210.0,92209.0,0.162673]
[1740994518454,0.00017098,92210.0,92209.0,0.16419106]
[1740994518648,0.00017098,92210.0,92209.0,0.18292799]
[1740994519041,0.00017098,92210.0,92209.0,0.81154591]
[1740994519386,0.00017098,92210.0,92209.0,1.35382799]
[1740994520323,0.00017098,92210.0,92209.0,1.36082799]
[1740994520719,0.00017098,92210.0,92209.0,1.35382799]
[1740994521520,0.00017098,92210.0,92209.0,1.36082799]
[1740994523169,0.00017098,92210.0,92209.0,1.35382799]
[1740994523353,0.00017098,92210.0,92209.0,0.81702799]
[1740994523502,0.00017098,92210.0,92209.0,0.02025499]
[1740994523701,0.00017098,92210.0,92209.0,0.18292799]
[1740994523961,0.00017098,92210.0,92209.0,0.169673]
[1740994524264,0.00017098,92210.0,92209.0,0.02078005]
[1740994524473,0.00017098,92210.0,92209.0,0.02778005]
[1740994524681,0.00017098,92210.0,92209.0,0.007]
[1740994524884,0.00017098,92210.0,92209.0,0.02078497]
[1740994525086,0.00017098,92210.0,92209.0,0.162673]
[1740994525270,0.00017098,92210.0,92209.0,0.18346394]
[1740994526233,0.00017098,92210.0,92209.0,0.02079094]
[1740994526431,0.00117098,92210.0,92209.0,0.02779094]
[1740994526592,0.00117098,92210.0,92209.0,0.169673]
[1740994526783,0.00117098,92210.0,92209.0,0.19046336]
[1740994527152,0.00117098,92210.0,92209.0,0.49046336]
[1740994534300,0.00117098,92210.0,92209.0,0.81756336]
[1740994535769,0.00117098,92210.0,92209.0,0.80837616]
[1740994536191,9.8e-07,92219.0,92218.0,0.462658]
[1740994536354,9.8e-07,92219.0,92218.0,1.333558]
[1740994536550,9.8e-07,92219.0,92218.0,1.35214841]
[1740994537468,0.00197098,92226.0,92225.0,0.462645]
[1740994537670,0.00197098,92226.0,92225.0,0.553925]
[1740994537867,0.00197098,92226.0,92225.0,0.57250781]
[1740994538755,0.00197098,92226.0,92225.0,0.89960781]
[1740994539506,0.00197098,92226.0,92225.0,0.90660781]
[1740994539922,0.00197098,92226.0,92225.0,0.89960781]
[1740994540119,0.00197098,92226.0,92225.0,0.51532781]
[1740994540709,0.00197098,92226.0,92225.0,0.81532781]
[1740994540956,0.00197098,92226.0,92225.0,1.35912781]
[1740994547022,0.00197098,92226.0,92225.0,1.35212781]
[1740994547376,0.00197098,92226.0,92225.0,1.35912781]
[1740994549452,0.00214098,92226.0,92225.0,1.35912781]
[1740994550055,0.00214098,92226.0,92225.0,0.81532781]
[1740994554971,0.00214098,92226.0,92225.0,1.35912781]
[1740994556511,0.00214098,92226.0,92225.0,0.81532781]
[1740994557369,0.01454085,92256.0,92226.0,0.3]
[1740994557556,0.01454085,92256.0,92252.0,0.162597]
[1740994557757,0.01454085,92256.0,92230.0,0.27197878]
[1740994557957,0.00145134,92257.0,92253.0,0.01863028]
[1740994558182,0.00145134,92257.0,92256.0,0.162591]
[1740994558568,0.00145134,92257.0,92256.0,0.01862858]
[1740994558711,0.00145134,92257.0,92240.0,0.3]
[1740994558905,0.00145134,92257.0,92256.0,0.01862858]
[1740994559129,0.00145134,92257.0,92256.0,0.162591]
[1740994559363,0.00145134,92257.0,92256.0,0.18121958]
[1740994559591,0.00145134,92257.0,92256.0,0.18273704]
[1740994559767,0.00145134,92257.0,92256.0,0.18121958]
[1740994560875,0.00145134,92257.0,92256.0,0.01862858]
[1740994561120,0.16404034,92257.0,92256.0,0.02362858]
[1740994561374,0.16404034,92257.0,92256.0,0.005]
[1740994561832,0.00145134,92257.0,92256.0,0.005]
[1740994562037,0.00145134,92257.0,92256.0,0.167591]
[1740994562209,0.00145134,92257.0,92256.0,0.18773743]
[1740994562435,0.00145134,92257.0,92256.0,0.18622011]
[1740994563006,0.00145134,92257.0,92256.0,0.18122011]
[1740994563387,0.00145134,92257.0,92256.0,0.18322011]
[1740994564044,0.00145134,92257.0,92256.0,0.18922011]
[1740994566106,0.00145134,92257.0,92256.0,0.18122011]
[1740994566306,0.00145134,92257.0,92256.0,0.18273739]
[1740994566557,0.00145134,92257.0,92256.0,0.18873739]
[1740994566973,0.00145134,92257.0,92256.0,0.18722011]
[1740994567147,0.00145134,92257.0,92256.0,0.19422011]
[1740994567792,0.00145134,92257.0,92256.0,0.18122011]
[1740994568261,0.00145134,92257.0,92256.0,0.18522011]
[1740994569482,0.00145134,92257.0,92256.0,0.18122011]
[1740994569691,0.00041633,92271.0,92267.0,0.162571]
[1740994569944,0.00064007,92268.0,92267.0,0.18119052]
[1740994570118,0.00064007,92268.0,92267.0,0.18270751]
[1740994571087,0.00064007,92268.0,92267.0,0.18519052]
[1740994571776,0.00064007,92268.0,92267.0,0.18670758]
[1740994572176,0.00064007,92268.0,92267.0,0.18519052]
[1740994572613,0.00064007,92268.0,92267.0,0.02261952]
[1740994572815,0.00064007,92268.0,92267.0,0.18519052]
[1740994573018,0.00064007,92268.0,92267.0,0.02261952]
[1740994573360,0.16320907,92268.0,92267.0,0.02261952]
[1740994573745,0.16320907,92268.0,92267.0,0.004]
[1740994573746,0.28680907,92268.0,92267.0,0.004]
[1740994574078,0.30134992,92268.0,92267.0,0.004]
[1740994574680,0.04804007,92268.0,92267.0,0.166571]
[1740994574902,0.00064007,92268.0,92267.0,0.16808839]
[1740994575117,0.00064007,92268.0,92267.0,0.81294788]
[1740994575313,0.00064007,92268.0,92267.0,0.81143049]
[1740994575919,0.00064007,92268.0,92267.0,0.80743049]
[1740994576741,0.00064007,92268.0,92267.0,0.81143049]
[1740994577601,0.00064007,92268.0,92267.0,0.34885949]
[1740994577805,0.00064007,92268.0,92267.0,0.51143049]
[1740994579352,0.00064007,92268.0,92267.0,0.34885949]
[1740994579546,0.00064007,92268.0,92267.0,0.51143049]
[1740994579808,0.00064007,92268.0,92267.0,0.18433049]
[1740994579965,0.00064007,92268.0,92267.0,0.02175949]
[1740994580885,0.16320907,92268.0,92267.0,0.02175949]
[1740994581085,0.16320907,92268.0,92267.0,0.004]
[1740994581287,0.00064007,92268.0,92267.0,0.166571]
[1740994581687,0.00064007,92268.0,92267.0,0.18433049]
[1740994581885,0.00064007,92268.0,92267.0,0.51143049]
[1740994582086,0.00064007,92268.0,92267.0,0.50743049]
[1740994582288,0.00064007,92268.0,92267.0,0.50843049]
[1740994583141,0.00064007,92268.0,92267.0,0.59859049]
[1740994583551,0.00064007,92268.0,92267.0,0.90559049]
[1740994585661,0.00064007,92268.0,92267.0,1.44939049]
[1740994585832,0.00064007,92268.0,92267.0,1.4868213]
[1740994586401,0.00064007,92268.0,92267.0,1.44939049]
[1740994589029,0.00064007,92268.0,92267.0,1.05823049]
[1740994589385,0.00064007,92268.0,92267.0,1.35823049]
[1740994589927,7e-08,92268.0,92267.0,1.35823049]
[1740994590431,4e-07,92272.0,92271.0,0.462564]
[1740994591754,4e-07,92272.0,92271.0,0.789664]
[1740994592515,4e-07,92272.0,92271.0,0.796664]
[1740994596861,4e-07,92272.0,92271.0,0.789664]
[1740994597144,4e-07,92272.0,92271.0,0.796664]
[1740994599775,0.0001702,92272.0,92271.0,0.796664]
[1740994601611,0.0001702,92272.0,92271.0,0.3341]
[1740994601812,0.0001702,92272.0,92271.0,0.496664]
[1740994602229,0.0001702,92272.0,92271.0,0.789664]
[1740994603029,0.0001702,92272.0,92271.0,0.796664]
[1740994603662,0.0001702,92272.0,92271.0,0.803664]
[1740994603858,0.0001702,92272.0,92271.0,0.894784]
[1740994604478,0.0001702,92272.0,92271.0,0.803664]
[1740994604644,0.0001702,92272.0,92271.0,0.894784]
[1740994606585,0.0001702,92272.0,92271.0,1.438584]
[1740994607534,2e-07,92272.0,92271.0,1.45312485]
[1740994607807,0.0001703,92296.0,92295.0,0.462522]
[1740994608020,0.0001703,92296.0,92295.0,1.333422]
[1740994608221,0.00029018,92296.0,92295.0,1.333422]
[1740994608976,0.00029018,92296.0,92295.0,1.34441489]
[1740994609399,0.00029018,92296.0,92295.0,0.80061489]
[1740994609575,0.00029018,92296.0,92295.0,0.89169489]
[1740994609954,0.00029018,92296.0,92295.0,0.34509289]
[1740994610078,0.00029018,92296.0,92295.0,0.007]
[1740994610799,0.0216927,92296.0,92295.0,0.007]
[1740994611206,0.0216927,92296.0,92295.0,0.16403878]
[1740994611207,0.00029018,92296.0,92295.0,0.16403878]
[1740994611536,0.00029018,92296.0,92295.0,0.169522]
[1740994611892,0.00029018,92296.0,92295.0,0.162522]
[1740994612100,0.00029018,92296.0,92295.0,0.16703859]
[1740994612471,0.00029018,92296.0,92295.0,0.165522]
[1740994612892,0.00029018,92296.0,92295.0,0.162522]
[1740994613297,0.00029018,92296.0,92295.0,0.004]
[1740994614585,0.00029018,92296.0,92288.0,0.3]
[1740994614774,0.00029018,92296.0,92290.0,0.3]
[1740994614977,0.00029018,92296.0,92291.0,0.00151675]
[1740994615136,0.00029018,92296.0,92295.0,0.007]
[1740994615342,0.00029018,92296.0,92295.0,0.169522]
[1740994615596,0.00029018,92296.0,92295.0,0.47103875]
[1740994615797,0.00029018,92296.0,92295.0,0.462522]
[1740994616973,0.00029018,92296.0,92287.0,0.3271]
[1740994617188,0.00029018,92296.0,92288.0,0.30151668]
[1740994617381,0.00029018,92296.0,92287.0,0.3271]
[1740994617382,0.00029018,92296.0,92287.0,0.543814]
[1740994617691,0.00029018,92296.0,92289.0,0.01611977]
[1740994617887,0.00029018,92296.0,92295.0,0.007]
[1740994618294,0.00029018,92296.0,92295.0,0.01611638]
[1740994618499,0.02220619,92296.0,92293.0,0.2167]
[1740994618694,0.02220619,92296.0,92295.0,0.01611638]
[1740994618904,0.02220619,92296.0,92294.0,0.01611694]
[1740994619172,0.02220619,92296.0,92295.0,0.18563838]
[1740994619333,0.02220619,92296.0,92295.0,0.18715514]
[1740994619736,0.02220619,92296.0,92295.0,0.02463314]
[1740994619945,0.18472619,92296.0,92295.0,0.02311638]
[1740994620098,0.14980619,92296.0,92295.0,0.02311638]
[1740994620308,0.31232619,92296.0,92295.0,0.007]
[1740994620713,0.14980619,92296.0,92295.0,0.169522]
[1740994621029,0.02220619,92296.0,92295.0,0.1779086]
[1740994621229,0.00029018,92296.0,92295.0,0.1779086]
[1740994621629,0.00029018,92296.0,92295.0,0.1849086]
[1740994621834,0.00029018,92296.0,92295.0,0.1794252]
[1740994622237,0.00029018,92296.0,92295.0,0.1844252]
[1740994622439,0.00029018,92296.0,92295.0,0.1829086]
[1740994622899,0.00029018,92296.0,92295.0,0.18442527]
[1740994623063,0.00029018,92296.0,92295.0,0.1779086]
[1740994623277,0.00029018,92296.0,92295.0,0.0153866]
[1740994623644,0.00029018,92296.0,92282.0,0.33801102]
[1740994623645,0.00029018,92296.0,92282.0,0.3271]
[1740994623846,0.00029018,92296.0,92295.0,0.01538508]
[1740994623847,0.16281118,92296.0,92295.0,0.01538508]
[1740994624074,0.08053531,92296.0,92271.0,0.0003396]
[1740994624282,0.0498,92294.0,92271.0,0.0003396]
[1740994624485,0.0498,92294.0,92272.0,0.01469588]
[1740994624486,0.01558598,92293.0,92272.0,0.01469588]
[1740994624639,0.162547,92281.0,92272.0,0.01469588]
[1740994624845,0.00104513,92280.0,92271.0,0.0003396]
[1740994625048,0.01454085,92292.0,92271.0,0.0003396]
[1740994625248,0.00104513,92293.0,92271.0,0.0003396]
[1740994625249,0.237662,92272.0,92271.0,0.0023396]
[1740994625472,0.28550713,92272.0,92271.0,0.0003396]
[1740994625669,0.29900285,92272.0,92271.0,0.0003396]
[1740994626507,0.29900285,92272.0,92271.0,0.0033396]
[1740994627218,0.31012258,92272.0,92271.0,0.0033396]
[1740994627718,0.31012258,92272.0,92271.0,0.0003396]
[1740994629118,0.61821845,92272.0,92271.0,0.0003396]
[1740994631097,0.1411156,92272.0,92271.0,0.0003396]
[1740994631301,0.05,92292.0,92271.0,0.0003396]
[1740994631302,0.0814,92287.0,92286.0,0.162538]
[1740994631701,0.08169018,92296.0,92295.0,0.162522]
[1740994631882,0.00029018,92296.0,92295.0,0.162522]
[1740994632083,0.00029018,92296.0,92295.0,0.17705045]
[1740994633318,0.00029018,92296.0,92295.0,0.01452845]
[1740994633647,0.162522,92295.0,92276.0,0.3]
[1740994633848,0.00104513,92295.0,92277.0,0.00151697]
[1740994634136,0.162522,92295.0,92287.0,0.162534]
[1740994634284,0.162522,92295.0,92279.0,0.216734]
[1740994634484,0.00029018,92296.0,92280.0,0.00151695]
[1740994634803,0.16281018,92296.0,92288.0,0.0003396]
[1740994635004,0.00104513,92295.0,92288.0,0.0003396]
[1740994635403,0.162532,92289.0,92288.0,0.0003396]
[1740994635868,0.30851798,92289.0,92288.0,0.0003396]
[1740994636071,0.30747285,92289.0,92288.0,0.0003396]
[1740994636272,0.60747285,92289.0,92288.0,0.0003396]
[1740994637622,0.60747285,92289.0,92288.0,0.0013396]
[1740994638154,0.60751285,92289.0,92288.0,0.0013396]
[1740994638924,0.60751285,92289.0,92288.0,0.0003396]
[1740994639128,0.14498085,92289.0,92288.0,0.0003396]
[1740994639333,0.04988513,92289.0,92288.0,0.0003396]
[1740994639534,0.00104,92289.0,92288.0,0.1628736]
[1740994639954,0.00104,92289.0,92288.0,0.16439037]
[1740994640151,0.00104,92289.0,92288.0,0.16439042]
[1740994640759,4e-05,92289.0,92288.0,0.16439042]
[1740994640991,4e-05,92289.0,92288.0,0.1638736]
[1740994641397,4e-05,92289.0,92288.0,0.1628736]
[1740994641704,4e-05,92289.0,92288.0,0.0063396]
[1740994641895,4e-05,92289.0,92288.0,0.1688736]
[1740994643450,4e-05,92289.0,92288.0,0.0063396]
[1740994643840,4e-05,92289.0,92288.0,0.0003396]
[1740994644807,0.16361713,92289.0,92288.0,0.0053396]
[1740994645010,0.16361713,92289.0,92288.0,0.0003396]
[1740994645391,0.16361713,92289.0,92288.0,0.0033396]
[1740994645594,0.16361713,92289.0,92288.0,0.0003396]
[1740994645797,0.17815798,92289.0,92288.0,0.0003396]
[1740994646971,0.17832828,92289.0,92288.0,0.0003396]
[1740994647307,0.26032828,92289.0,92288.0,0.0023396]
[1740994647508,0.25928315,92289.0,92288.0,0.0003396]
[1740994647712,0.55928315,92289.0,92288.0,0.0013396]
[1740994647918,0.60928315,92289.0,92288.0,0.0013396]
[1740994648168,0.93338315,92289.0,92288.0,0.0013396]
[1740994648580,0.98338315,92289.0,92288.0,0.0013396]
[1740994649103,0.98338315,92289.0,92288.0,0.0003396]
[1740994650251,0.4073103,92289.0,92241.0,0.3]
[1740994650448,0.00189653,92288.0,92243.0,0.3]
[1740994650683,0.16254,92285.0,92279.0,0.162549]
[1740994650856,0.00189644,92284.0,92266.0,0.162572]
[1740994651058,0.162566,92270.0,92263.0,0.162577]
[1740994651259,0.00189657,92269.0,92256.0,0.3271]
[1740994651479,0.162581,92262.0,92256.0,0.16259]
[1740994651687,0.00189673,92261.0,92249.0,0.162603]
[1740994651887,0.0811,92277.0,92257.0,0.162588]
[1740994652090,0.162576,92265.0,92246.0,0.216811]
[1740994652282,0.16447393,92264.0,92245.0,0.543912]
[1740994652463,0.162578,92263.0,92245.0,0.543912]
[1740994652708,0.00189693,92262.0,92257.0,0.162589]
[1740994652919,0.00189693,92262.0,92245.0,0.32749977]
[1740994653067,0.162573,92267.0,92245.0,0.32749977]
[1740994653276,0.162577,92264.0,92257.0,0.162587]
[1740994653502,0.0018969,92263.0,92245.0,0.32749977]
[1740994653705,0.1644769,92263.0,92257.0,0.162589]
[1740994654002,0.162568,92270.0,92264.0,0.162576]
[1740994654202,0.21675,92272.0,92258.0,0.216781]
[1740994654407,0.00189689,92271.0,92256.0,0.006]
[1740994654607,0.01095405,92275.0,92257.0,0.00123088]
[1740994654832,0.0111022,92274.0,92235.0,0.09096]
[1740994655123,0.216768,92265.0,92257.0,0.003]
[1740994655325,0.00189693,92264.0,92235.0,0.09096]
[1740994655500,0.21866093,92267.0,92256.0,0.002]
[1740994655681,0.00189693,92267.0,92256.0,0.002]
[1740994655897,0.00189693,92274.0,92256.0,0.002]
[1740994656088,0.00189693,92274.0,92256.0,0.218787]
[1740994656291,0.00189693,92274.0,92256.0,0.002]
[1740994656561,0.00189693,92274.0,92260.0,0.162583]
[1740994656691,0.00189693,92274.0,92263.0,0.162577]
[1740994656892,0.00189682,92273.0,92267.0,0.162571]
[1740994657095,0.3,92283.0,92235.0,0.09096]
[1740994657096,0.075,92287.0,92250.0,0.3]
[1740994657414,0.075,92287.0,92251.0,0.00123068]
[1740994657415,0.01086982,92287.0,92251.0,0.00123068]
[1740994657581,0.00210698,92289.0,92276.0,0.216739]
[1740994657780,0.0002103,92289.0,92268.0,0.31454085]
[1740994657984,0.0002103,92289.0,92288.0,0.539734]
[1740994658397,3e-07,92289.0,92288.0,0.866834]
[1740994658601,3e-07,92289.0,92288.0,0.92777485]
[1740994658978,0.0001703,92303.0,92288.0,0.92777485]
[1740994658979,6e-07,92303.0,92302.0,0.46251]
[1740994659277,0.00012048,92303.0,92302.0,1.43891085]
[1740994659487,0.00012048,92303.0,92302.0,1.33341]
[1740994659910,0.00012048,92303.0,92302.0,1.1709]
[1740994660500,0.00012048,92303.0,92292.0,0.41806]
[1740994660877,0.00012048,92303.0,92302.0,0.007]
[1740994661489,0.00012048,92303.0,92302.0,0.307]
[1740994661691,0.00012048,92303.0,92302.0,0.3]
[1740994662079,0.00012048,92303.0,92302.0,0.304]
[1740994662080,0.00016048,92303.0,92302.0,0.304]
[1740994663799,0.00016048,92303.0,92302.0,0.3]
[1740994664204,0.00116048,92303.0,92302.0,0.307]
[1740994664408,0.00016048,92303.0,92302.0,0.3]
[1740994664773,0.00116048,92303.0,92302.0,0.32154085]
[1740994665107,0.00116048,92303.0,92302.0,0.31454085]
[1740994666423,0.00216048,92303.0,92302.0,0.307]
[1740994669477,0.00216048,92303.0,92302.0,0.16951]
[1740994670166,0.00216048,92303.0,92302.0,0.007]
[1740994670302,0.00216048,92303.0,92302.0,0.16951]
[1740994670503,0.00216048,92303.0,92302.0,0.007]
[1740994670804,0.00016048,92303.0,92292.0,0.3]
[1740994671147,0.00116048,92303.0,92302.0,0.006]
[1740994671684,0.00016048,92303.0,92286.0,0.3]
[1740994671892,0.00016048,92303.0,92284.0,0.3]
[1740994672130,0.00305657,92303.0,92294.0,0.162523]
[1740994672444,0.00305657,92303.0,92293.0,0.162524]
[1740994673229,0.00205657,92303.0,92293.0,0.162524]
[1740994673654,0.00305657,92303.0,92302.0,0.007]
[1740994673853,0.16556457,92303.0,92288.0,0.162533]
[1740994674052,0.162517,92299.0,92264.0,0.216769]
[1740994674256,0.00189623,92298.0,92293.0,0.002]
[1740994674630,0.00189623,92298.0,92267.0,0.09092]
[1740994675184,0.00189623,92302.0,92268.0,0.00122978]
[1740994675376,0.00016048,92303.0,92302.0,0.16251]
[1740994675676,0.00016048,92303.0,92295.0,0.216695]
[1740994675850,0.00016048,92303.0,92296.0,0.16252]
[1740994676018,0.00205654,92303.0,92277.0,0.3271]
[1740994676217,0.00205654,92303.0,92295.0,0.162522]
[1740994676421,0.00205654,92303.0,92281.0,0.3]
[1740994676727,0.00205654,92303.0,92278.0,0.3]
[1740994676949,0.00016048,92303.0,92293.0,0.003]
[1740994677178,0.00205654,92303.0,92293.0,0.003]
[1740994677476,0.162514,92300.0,92286.0,0.162537]
[1740994677709,0.0018962,92299.0,92286.0,0.162537]
[1740994677983,0.0018962,92299.0,92283.0,0.216722]
[1740994678214,0.162521,92296.0,92293.0,0.002]
[1740994678392,0.290624,92294.0,92293.0,0.002]
[1740994678689,0.1281,92294.0,92260.0,0.216778]
[1740994678889,0.162536,92287.0,92273.0,0.16256]
[1740994679099,0.00189658,92286.0,92273.0,0.16256]
[1740994679455,0.00189658,92286.0,92262.0,0.216773]
[1740994679654,0.00189658,92286.0,92276.0,0.162555]
[1740994679863,0.00189655,92290.0,92286.0,0.162537]
[1740994680087,0.00189655,92290.0,92259.0,0.10192201]
[1740994680283,0.1281,92294.0,92260.0,0.162584]
[1740994680443,0.162528,92292.0,92260.0,0.162584]
[1740994680673,0.162531,92290.0,92276.0,0.162554]
[1740994680874,0.00189633,92289.0,92259.0,0.07615193]
[1740994681077,0.00189633,92293.0,92259.0,0.06514992]
[1740994681304,0.162538,92286.0,92271.0,0.162562]
[1740994681505,0.162541,92284.0,92270.0,0.162564]
[1740994681708,0.00189653,92283.0,92273.0,0.004]
[1740994681880,0.162542,92284.0,92273.0,0.004]
[1740994682091,0.00189653,92283.0,92259.0,0.06514992]
[1740994682285,0.00189653,92283.0,92265.0,0.162573]
[1740994682487,0.516703,92293.0,92259.0,0.06714992]
[1740994682488,0.00189658,92292.0,92259.0,0.06714992]
[1740994682808,0.00189658,92292.0,92250.0,0.3]
[1740994683015,0.05,92287.0,92273.0,0.005]
[1740994683380,0.21861386,92286.0,92273.0,0.005]
[1740994683578,0.162559,92274.0,92273.0,0.005]